Cogmind - Beta 17.1 @@@ ROGUE MODE // 2026.09.08 @ 04:01:52 Player: J1ang-5h1 Result: Destroyed by P-70 Sage with Tesla Rifle Performance ------------- Evolutions (5) 2500 Regions Visited (14) 2800 Robots Destroyed (236) 1180 Value Destroyed (13291) 13291 Prototype IDs (9) 180 Alien Tech Used (0) 0 Bonus (22048) 22048 TOTAL SCORE: 41999 Bonus ------- High Alert Combat Kills 2238 Follower Combat Kills 1583 Prayed to X0-1V1 5000 Major X0-1V1 Interference 9200 Entered Garrisons 1200 Used RIF Installer 3000 Friendly Fire -173 Cogmind --------- Core Integrity 0/720 Matter 147/300 Energy 19/350 System Corruption 11% Temperature Warm (169) Movement Core (2500) Ox49 Location -5/Garrison Parts ------- > --- POWER (4) -------- Reinforced Quantum Reactor > --- PROPULSION (3) --- (None) > --- UTILITY (7) ------ Advanced Cooling System Huge Storage Unit Advanced Target Analyzer Advanced Particle Charger Improved Core Shielding Improved Shield Generator Relay Coupler [Sentry] (34) > --- WEAPON (3) ------- Enhanced Nova Cannon Enhanced Nova Cannon > --- INVENTORY (26) --- Wheel Advanced Heat Sink High-capacity Battery (250) High-capacity Matter Pod (200) Improved Trap Scanner Advanced Salvage Targeting Computer Improved Kinecellerator Advanced Transmission Jammer Improved Focal Shield Improved Shock Absorption System Relay Coupler [Sentry] (22) Relay Coupler [Proto] (9) Relay Coupler [Proto] (9) Relay Coupler [Proto] (9) Long-range Tractor Beam KE Penetrator Rocket Array Improved Plasma Cutter Power Sword Peak State ------------ > --- POWER ------------ Light Quantum Reactor Reinforced Quantum Reactor Reinforced Quantum Reactor > --- PROPULSION ------- Biometal Heavy Treads Advanced Heavy Siege Treads > --- UTILITY ---------- Advanced Cooling System Advanced Cooling System Huge Storage Unit Improved Trap Scanner Advanced Transmission Jammer Relay Coupler [Sentry] X0-1V1's Piety Tracker > --- WEAPON ----------- Enhanced Quantum Rifle Enhanced Quantum Rifle Railgun > --- INVENTORY -------- Quantum Reactor Advanced Heat Sink Advanced Heat Sink High-capacity Battery High-capacity Matter Pod Advanced Particle Charger Improved Kinecellerator Improved Medium Armor Plating Improved Focal Shield Improved Shock Absorption System Improved Shield Generator Advanced Force Field Relay Coupler [Demolisher] Relay Coupler [Proto] Relay Coupler [Proto] Relay Coupler [Proto] High-powered Tractor Beam Enhanced Nova Cannon Enhanced Nova Cannon Heavy Linear Accelerator Gamma Bomb Array Rocket Array Advanced Remote Datajack Improved Plasma Cutter Power Sword [Rating: 146] Favorites ----------- Power Reinforced Quantum Reactor Engine Hybrid Deuterium Engine Power Core Micro Fission Core Reactor Reinforced Quantum Reactor Propulsion Light Treads Treads Light Treads Leg Thunder Leg Wheel Armored Huge Wheel Utility X0-1V1's Piety Tracker Device X0-1V1's Piety Tracker Storage Huge Storage Unit Processor Advanced Target Analyzer Hackware Relay Coupler [Sentry] Protection Hardened Medium Armor Plating Weapon Gauss Rifle Energy Gun Enhanced Quantum Rifle Energy Cannon Phase Cannon Ballistic Gun Gauss Rifle Ballistic Cannon Heavy Linear Accelerator Launcher Rocket Array Special Weapon Improved Remote Datajack Impact Weapon Heavy Mace Slashing Weapon Katana Special Melee Weapon Improved Datajack Build | -11 -10 -9 -8 -8 -7 -7 -6 -6 -6 -6 -5 -5 -5 -5 ------- Run | Yrd Mat Mat Mat Gar Fac Gar Fac Gar Fac Gar Fac Gar Fac Gar Slots Evolved 10 | . . 2 2 . 2 . 2 . . . 2 . . . Power 2 | . . . . . . . 1 . . . 1 . . . Propulsion 2 | . . . . . 2 . . . . . . . . . Utility 5 | . . 1 2 . . . 1 . . . 1 . . . Weapon 1 | . . 1 . . . . . . . . . . . . Parts Attached 190 | 8 17 13 4 26 17 19 1 16 4 23 8 19 6 9 Power 28 | 1 4 2 . 6 1 . 1 2 . 2 1 6 2 . Engine 13 | 1 3 2 . 3 . . 1 . . 2 1 . . . Core 5 | . 1 . . 3 1 . . . . . . . . . Reactor 10 | . . . . . . . . 2 . . . 6 2 . Propulsion 39 | 3 3 3 . 3 4 4 . 2 3 3 4 2 1 4 Treads 19 | . 2 . . 3 2 3 . 1 3 3 . 2 . . Leg 1 | . . . . . . . . . . . 1 . . . Wheel 19 | 3 1 3 . . 2 1 . 1 . . 3 . 1 4 Hover . | . . . . . . . . . . . . . . . Flight . | . . . . . . . . . . . . . . . Utility 71 | 2 4 3 3 9 6 11 . 9 1 11 1 8 2 1 Device 37 | 1 2 2 1 6 3 4 . 4 1 7 . 4 1 1 Storage 7 | 1 2 1 . . 1 . . . . . 1 . 1 . Processor 1 | . . . . . . . . . . . . 1 . . Hackware 18 | . . . . . 2 7 . 4 . 4 . 1 . . Protection 8 | . . . 2 3 . . . 1 . . . 2 . . Artifact . | . . . . . . . . . . . . . . . Weapon 52 | 2 6 5 1 8 6 4 . 3 . 7 2 3 1 4 Energy Gun 15 | . 4 1 1 2 1 1 . . . 3 . 2 . . Energy Cannon 4 | . . 1 . . . 1 . . . . . . . 2 Ballistic Gun 18 | 2 1 2 . 4 3 2 . 2 . . 1 . 1 . Ballistic Cannon 1 | . . . . . . . . 1 . . . . . . Launcher 4 | . . . . . 1 . . . . 1 . 1 . 1 Special Weapon 5 | . . . . . 1 . . . . 3 . . . 1 Impact Weapon 1 | . 1 . . . . . . . . . . . . . Slashing Weapon 3 | . . 1 . 1 . . . . . . 1 . . . Piercing Weapon . | . . . . . . . . . . . . . . . Special Melee Weapon 1 | . . . . 1 . . . . . . . . . . Unidentified Prototypes 5 | . . 4 . . 1 . . . . . . . . . Corrupted Parts 1 | . . . . . . . . 1 . . . . . . System Corruption 7 | . . . . . . . . 7 . . . . . . Parts Lost 66 | . 5 1 2 12 . 1 . 10 . 12 . 6 3 14 Power 12 | . 2 . . 1 . . . 2 . 2 . 1 1 3 Propulsion 17 | . 1 1 . 2 . . . 2 . 4 . 1 1 5 Utility 21 | . 1 . 1 6 . . . 4 . 4 . 1 . 4 Weapon 16 | . 1 . 1 3 . 1 . 2 . 2 . 3 1 2 Highest Loss Streak 11 | . 2 1 2 4 . 1 . 3 . 6 . 4 3 11 To Critical Strikes 1 | . . . . . . . . 1 . . . . . . Average Backups 22 | 5 12 15 14 23 24 24 23 24 25 23 22 24 23 24 Power 1 | . 1 . . 2 1 . . 1 . 1 . 1 . . Propulsion . | 2 2 1 . . . 1 1 . . . . . . . Utility 11 | . 3 5 4 9 10 12 14 12 14 11 11 14 14 16 Weapon 7 | 1 4 6 6 9 8 7 7 8 9 8 6 6 5 5 Tool/Special . | . . . . . . . . . . . . . . . Unused Backups 57 | . 2 6 . 6 7 8 . 10 1 2 . 4 . 11 Power 6 | . . . . 1 . 1 . 4 . . . . . . Propulsion 2 | . . 1 . . 1 . . . . . . . . . Utility 28 | . 1 3 . 4 . 3 . 2 1 . . 3 . 11 Weapon 19 | . 1 2 . 1 6 3 . 4 . 1 . 1 . . Tool/Special 2 | . . . . . . 1 . . . 1 . . . . Average Slot Usage (%) 91 | . 99 94 96 96 88 90 92 90 86 84 93 87 89 88 Engine 5 | . 11 10 9 5 . 6 13 8 . 8 16 1 . . Core 1 | . 2 . . 3 7 . . . . . . . . . Reactor 5 | . . . . . . . . 3 13 4 . 15 22 22 Treads 10 | . 13 8 . 8 14 12 13 12 13 11 11 9 5 . Wheel 6 | . 14 11 18 7 6 8 6 6 6 4 4 . 1 8 Device 23 | . 13 22 24 25 21 23 32 26 31 25 26 23 22 22 Storage 7 | . 14 11 9 9 7 7 6 6 6 6 5 5 5 5 Hackware 3 | . . . . . 4 6 . . . 5 6 6 5 5 Protection 2 | . . . 9 9 2 . . 4 1 . . 2 . . Energy Gun 5 | . 16 12 4 2 . 3 . . . 7 5 8 8 3 Ballistic Gun 8 | . 11 7 14 18 17 10 13 12 . . 4 2 1 3 Special Weapon 1 | . . . . . 1 3 6 1 . 1 2 1 3 . Slashing Weapon 2 | . . 9 6 1 3 . . 3 6 1 3 2 2 1 Peak Build Rating 146 | 7 14 33 36 49 74 81 92 92 98 104 98 146 138 135 Average Rating 77 | 5 10 29 35 41 61 73 91 84 95 84 91 134 133 116 On Entrance 66 | . 7 13 31 34 49 74 81 92 92 98 75 94 129 135 Avg Prop Armor Cover (%) 9 | . . . . 4 . 7 6 8 11 9 13 13 15 15 Naked Turns . | . . . . . . . . . . . . . . . Heaviest Build 212 | 12 33 99 103 106 101 115 127 151 151 162 204 187 192 212 Greatest Support 155 | 32 40 40 28 40 96 57 57 57 56 40 40 155 80 48 Greatest Overweight (x) 29 | . 1 29 3 6 3 2 2 5 5 6 13 4 11 20 Average Overweight (x) 2 | . . 1 3 3 1 1 2 3 4 3 4 1 5 9 Largest Inventory Capacity 26 | 8 15 25 25 25 26 26 26 26 26 26 26 26 26 26 Average Capacity 24 | 7 14 17 25 25 25 26 26 26 26 26 26 26 26 26 Most Carried 26 | 7 15 19 16 25 26 26 25 26 26 26 26 26 26 26 Average Carried 23 | 5 12 15 14 23 25 25 24 25 25 24 23 25 25 24 Final Capacity 26 | 8 15 25 25 25 26 26 26 26 26 26 26 26 26 26 Final Carried 26 | 7 15 16 14 25 26 26 24 26 26 25 24 26 26 19 Class Distribution -------------------- 29% | Bothacker-Mutant 17% | Mutant 13% | Hauler-Gunner 11% | Bothacker-Tank 10% | Bothacker-Gunner 7% | Scavenger-Mutant 4% | Hauler-Tank Dominant Class ---------------- Mutant | -10/Materials Mutant | -9/Materials Mutant | -8/Materials Bothacker-Mutant | -8/Garrison Bothacker-Gunner | -7/Factory Hauler-Gunner | -7/Garrison Hauler-Gunner | -6/Factory Scavenger-Mutant | -6/Garrison Bothacker-Mutant | -6/Factory Bothacker-Mutant | -6/Garrison Scavenger-Mutant | -5/Factory Bothacker-Mutant | -5/Garrison Bothacker-Tank | -5/Factory Bothacker-Gunner | -5/Garrison Resources | -11 -10 -9 -8 -8 -7 -7 -6 -6 -6 -6 -5 -5 -5 -5 ----------- Run | Yrd Mat Mat Mat Gar Fac Gar Fac Gar Fac Gar Fac Gar Fac Gar Matter Collected 8694 | 308 512 379 131 1688 422 1191 . 1112 49 1296 174 788 213 431 Remotely 811 | . . . . . . . . . . 667 . . 144 . Salvage Created 9144 | 131 936 1029 256 1186 851 429 . 913 36 740 405 1057 265 910 Parts 485 | 9 54 55 7 79 40 25 . 41 1 26 17 54 15 62 Haulers Intercepted 3 | . . 3 . . . . . . . . . . . . Recyclers Shooed 7 | . 3 1 . . . . . . . . 3 . . . Parts Field Recycled . | . . . . . . . . . . . . . . . Retrieved Matter . | . . . . . . . . . . . . . . . Parts Self-Destructed . | . . . . . . . . . . . . . . . Prevented . | . . . . . . . . . . . . . . . Parts Restored . | . . . . . . . . . . . . . . . Kills | -11 -10 -9 -8 -8 -7 -7 -6 -6 -6 -6 -5 -5 -5 -5 ------- Run | Yrd Mat Mat Mat Gar Fac Gar Fac Gar Fac Gar Fac Gar Fac Gar Combat Hostiles Destroyed 198 | . 17 24 5 33 11 6 . 17 1 29 . 25 4 26 Melee 2 | . . 1 . . . . . . . . . 1 . . Guns 144 | . 17 23 5 33 11 5 . 17 . 5 . 18 4 6 Cannons 11 | . . . . . . 1 . . 1 2 . 1 . 6 AOE 39 | . . . . . . . . . . 22 . 5 . 12 Classes Destroyed 18 | 2 6 3 1 2 2 1 . . . 1 . . . . Worker 5 | . 1 . . . 2 . . . . . 1 . 1 . Tunneler 5 | 2 2 . . . . . . . . . 1 . . . Hauler 3 | . . 3 . . . . . . . . . . . . Recycler 11 | 1 2 . . . 5 . . . . . 3 . . . Mechanic 3 | . 1 1 . . 1 . . . . . . . . . Operator 3 | . 1 1 . . 1 . . . . . . . . . Drone 1 | . . . . . 1 . . . . . . . . . Watcher 9 | . 3 3 1 1 . 1 . . . . . . . . Swarmer 61 | . 6 . . 8 7 1 . . . 11 . 9 . 19 Cutter 7 | . . . . 2 . 1 . 2 . 1 . 1 . . Grunt 64 | . 11 13 3 9 1 . . 9 . 6 . 7 . 5 Brawler 4 | . . . 1 1 . . . . . 1 . 1 . . Duelist 5 | . . 3 1 . . . . . . . . 1 . . Protector 1 | . . . . . . . . . . 1 . . . . Sentry 29 | . . 8 . 8 . 3 . 1 1 7 . 1 . . Specialist 1 | . . . . . . 1 . . . . . . . . Hunter 8 | . . . . . 1 . . 4 . . . . 2 1 Programmer 17 | . . . . 5 1 . . 1 . 2 . 5 2 1 Best Kill Streak 13 | 2 7 5 5 7 13 2 . 5 1 13 3 11 3 6 Combat Bots Only 13 | . 7 4 5 7 8 1 . 5 1 13 . 11 2 6 Max Kills in Single Turn 7 | 2 1 2 2 2 2 1 . 1 1 7 1 5 1 4 Gunslinging 1 | . . 1 1 1 . . . . . 1 . . . . Exploded 7 | . . . . . . . . . . 7 . 5 . 4 Melee 1 | . . 1 . . . . . . . . . 1 . . Uniques/NPCs Destroyed . | . . . . . . . . . . . . . . . Combat | -11 -10 -9 -8 -8 -7 -7 -6 -6 -6 -6 -5 -5 -5 -5 -------- Run | Yrd Mat Mat Mat Gar Fac Gar Fac Gar Fac Gar Fac Gar Fac Gar Hostile Shots Fired 1467 | . 88 57 26 144 63 173 . 159 9 405 3 133 32 175 Missed 461 | . 25 16 5 34 23 69 . 41 4 144 . 34 8 58 Hits 1006 | . 63 41 21 110 40 104 . 118 5 261 3 99 24 117 Melee 42 | . . 5 4 2 17 5 . 6 . 3 . . . . Projectile 964 | . 63 36 17 108 23 99 . 112 5 258 3 99 24 117 AOE 12 | . . . . 1 . 3 . 1 . 2 . 1 4 . Critical Strikes 29 | . . 1 1 4 2 3 . 4 . 4 1 3 1 5 Actively Blocked 1 | . . . . . . . . . . . . . . 1 Part Disruptions 2 | . . . . 1 . . . . . . . . . 1 Damage Taken 14200 | . 749 604 379 1532 383 1325 . 1698 24 2375 59 2136 629 2307 Core 1948 | . 192 87 64 170 38 136 . 83 6 444 18 221 82 407 Absorbed by Shields 1153 | . . . . 43 . . . 325 10 601 . . . 174 Reduced by Siege Mode 15 | . . . . . . . . . . . . 10 5 . Redirected to Shielding 42 | . . . . . . . . . . . . . . 42 Ignored by Resistances 803 | . . 10 . 42 38 111 . 98 3 235 . 151 20 95 Regen/Repaired (Parts) 72 | . . 72 . . . . . . . . . . . . Core Remaining (%) 61 | 100 23 100 . 58 . 81 . . . 6 . . . . Volleys Fired 544 | 7 86 59 17 64 33 61 . 60 2 34 3 49 17 52 Largest 3 | 2 2 2 3 3 3 3 . 3 1 2 3 3 3 3 Hottest 305 | 40 130 130 153 195 117 150 . 98 70 188 150 180 163 305 Shots Fired 1096 | 14 165 118 41 155 83 105 . 133 3 50 5 100 36 88 Gun 960 | 14 165 118 41 155 78 69 . 123 . 35 3 90 33 36 Cannon 65 | . . . . . . 19 . 2 3 4 . . . 37 Launcher 16 | . . . . . . . . . . 7 . 2 . 7 Special 55 | . . . . . 5 17 . 8 . 4 2 8 3 8 Kinetic 611 | 14 117 16 27 110 74 43 . 125 3 4 2 43 3 30 Thermal 397 | . 48 102 14 45 4 45 . . . 34 . 32 30 43 Explosive 12 | . . . . . . . . . . 7 . 2 . 3 Electromagnetic 21 | . . . . . . . . . . 1 1 15 . 4 Robot Hit Streak 28 | 4 11 28 15 21 10 22 . 19 3 7 5 11 7 8 Robot Miss Streak 12 | 1 7 7 6 12 2 3 . 4 . 4 1 3 4 3 Penetration Max 1 | . . . . 1 1 1 . 1 . . . 1 . . Secondary Targets 28 | . 1 1 2 11 1 2 . 2 . 1 . 6 1 . Max Gunslinging Chain 1 | . 1 1 1 1 1 1 . 1 . 1 . 1 1 . Shots Hit Robots 788 | 9 102 106 34 128 51 71 . 88 3 36 16 67 21 56 Core Hits 611 | 6 57 138 25 97 29 17 . 34 1 93 3 54 8 49 Critical Kills 9 | . 1 . . . 1 1 . . . . . 4 . 2 Critical Parts Destroyed 11 | . 1 . . 3 2 1 . . . . . 4 . . Critical Strikes 26 | . 3 . . 4 3 5 . . . . . 8 . 3 Burn 4 | . 1 . . . . 3 . . . . . . . . Destroy 21 | . 2 . . 4 3 2 . . . . . 8 . 2 Blast 1 | . . . . . . . . . . . . . . 1 Melee Attacks 86 | . 1 3 . 13 6 2 . 14 . 6 12 28 . 1 Impact 1 | . 1 . . . . . . . . . . . . . Slashing 82 | . . 3 . 10 6 2 . 14 . 6 12 28 . 1 Piercing . | . . . . . . . . . . . . . . . Sneak Attacks 15 | . . . . 3 1 . . . . . 11 . . . Combat Hostiles . | . . . . . . . . . . . . . . . Follow-up Attacks . | . . . . . . . . . . . . . . . Damage Inflicted 21338 | 96 1354 1682 513 2540 1204 1232 . 1980 235 3050 943 3136 569 2804 Guns 13545 | 96 1354 1644 513 2507 1129 1081 . 1905 . 645 58 1376 569 668 Cannons 1780 | . . . . . . 151 . 75 235 156 . 74 . 1089 Explosions 4828 | . . . . . . . . . . 2249 . 1604 . 975 Melee 1185 | . . 38 . 33 75 . . . . . 885 82 . 72 Ramming . | . . . . . . . . . . . . . . . Kinetic 8663 | 96 880 191 313 1803 1078 681 . 1980 235 156 28 608 32 582 Thermal 6965 | . 474 1453 200 704 51 551 . . . 620 . 1169 537 1206 Explosive 3980 | . . . . . . . . . . 2249 . 1024 . 707 Electromagnetic 545 | . . . . . . . . . . 25 30 253 . 237 Impact . | . . . . . . . . . . . . . . . Slashing 1185 | . . 38 . 33 75 . . . . . 885 82 . 72 Piercing . | . . . . . . . . . . . . . . . Highest Corruption 36 | . . . 5 10 1 11 . 36 24 26 . 4 4 10 Average Corruption 11 | . . . 5 5 1 11 . 22 24 25 . 3 3 3 Corruption Purged 1 | . . . . . 1 . . . . . . . . . Corruption Blocked . | . . . . . . . . . . . . . . . Effects 291 | . . . 1 37 5 32 . 75 24 52 . 24 23 18 Message Errors 69 | . . . . 5 1 10 . 19 6 12 . 4 7 5 Matter Fused 74 | . . . . 15 . 11 . 22 1 8 . 6 8 3 Heat Flow Errors 45 | . . . . 3 . 4 . 14 5 6 . 6 4 3 Energy Discharges 37 | . . . . 2 2 4 . 10 2 13 . 2 1 1 Parts Rejected 2 | . . . . 1 . . . . . 1 . . . . Parts Fused 1 | . . . . . 1 . . . . . . . . . Data Loss (minor) 25 | . . . . 4 1 1 . 3 6 3 . 2 . 5 Data Loss (major) 8 | . . . . 1 . 1 . 2 1 1 . 1 1 . Misfires 12 | . . . 1 3 . 1 . 1 1 1 . 2 2 . Alerts 8 | . . . . . . . . 3 2 3 . . . . Weapon Failures 10 | . . . . 3 . . . 1 . 4 . 1 . 1 Overload Shots . | . . . . . . . . . . . . . . . Overflow Damage 393 | . 59 . . . 35 . . 10 . 17 193 22 . 57 Projectiles 10 | . . . . . . . . 10 . . . . . . Explosions 155 | . 59 . . . . . . . . 17 . 22 . 57 Melee 228 | . . . . . 35 . . . . . 193 . . . Knockbacks 2 | . . . . . . . . . 1 . . . . 1 Impact . | . . . . . . . . . . . . . . . Kinetic 2 | . . . . . . . . . 1 . . . . 1 Secondary . | . . . . . . . . . . . . . . . Self-Inflicted Damage 909 | . 98 . . . . . . . . 239 . 242 . 330 Shots 35 | . 1 . . . . . . . . 10 . 9 . 15 Rammed . | . . . . . . . . . . . . . . . Targets Rammed . | . . . . . . . . . . . . . . . Kicked . | . . . . . . . . . . . . . . . Crushed . | . . . . . . . . . . . . . . . Highest Temperature 743 | . 88 14 118 285 148 256 . 254 198 743 102 451 182 387 Average Temperature 76 | . 24 5 66 79 26 84 . 54 96 141 45 85 29 100 Received Heat Transfer 2933 | . 234 225 153 420 30 267 . 337 8 502 48 339 39 331 Effects 10 | . . . . . . . . . . 8 . 2 . . Shutdowns 4 | . . . . . . . . . . 2 . 2 . . Energy Bleed 1 | . . . . . . . . . . 1 . . . . Damage (minor) 1 | . . . . . . . . . . 1 . . . . Damage (major) 2 | . . . . . . . . . . 2 . . . . Damage (core) 2 | . . . . . . . . . . 2 . . . . Siege Activations 4 | . . . . . . . . . . . . 2 2 . Total Turns 26 | . . . . . . . . . . . . 16 10 . Longest Duration 12 | . . . . . . . . . . . . 12 8 . Martial Activations . | . . . . . . . . . . . . . . . Shielding Activations . | . . . . . . . . . . . . . . . Robots Disrupted . | . . . . . . . . . . . . . . . Combat Hostiles . | . . . . . . . . . . . . . . . Robots Corrupted 1 | . . . . . . . . . . . . . . 1 Combat Hostiles 1 | . . . . . . . . . . . . . . 1 Parts Fried 1 | . . . . . . . . . . . . . . 1 Impact Corruptions . | . . . . . . . . . . . . . . . Robots Melted . | . . . . . . . . . . . . . . . Combat Hostiles . | . . . . . . . . . . . . . . . Parts Melted 8 | . . 1 . . . 4 . . . . . 3 . . Heat Transferred 8938 | . 1235 1820 245 870 111 1258 . . . 775 . 1098 629 897 Parts Sabotaged . | . . . . . . . . . . . . . . . Parts Stolen 1 | . . . . . 1 . . . . . . . . . Parts Stripped . | . . . . . . . . . . . . . . . Power Chain Reactions 4 | . . . . . . . . . . . . 2 . 2 Alert | -11 -10 -9 -8 -8 -7 -7 -6 -6 -6 -6 -5 -5 -5 -5 ------- Run | Yrd Mat Mat Mat Gar Fac Gar Fac Gar Fac Gar Fac Gar Fac Gar Maximum Alert Level 5 | . 1 1 . 4 3 5 3 5 3 3 2 5 3 3 Low Security (%) 14 | 100 99 36 100 4 . . . . . . . 14 . . Level 1 9 | . . 63 . 4 . . . . . . 71 5 . 22 Level 2 23 | . . . . 31 61 11 . 22 2 12 28 27 69 24 Level 3 35 | . . . . 35 38 50 100 42 97 87 . 25 30 52 Level 4 13 | . . . . 24 . 25 . 28 . . . 24 . . Level 5 2 | . . . . . . 12 . 6 . . . 2 . . High Security . | . . . . . . . . . . . . . . . Max Security . | . . . . . . . . . . . . . . . Sterilizations 1 | . . 1 . . . . . . . . . . . . Peak Influence 1881 | 10 200 368 146 1539 807 1881 987 1726 905 1097 554 1622 851 871 Initial 987 | . . 28 108 88 807 525 987 641 905 487 554 174 851 345 Average 722 | . 104 223 97 818 632 1054 961 1022 795 929 362 790 639 648 Influence Increases 10343 | 15 618 795 128 1611 474 1746 . 1405 53 850 89 1658 199 702 Destroy 0b10 Robot/C 4305 | . 340 480 100 680 280 400 . 360 20 660 20 470 90 405 Destroy 0b10 Robot/NC 227 | 15 55 40 5 5 50 10 . . 5 5 25 . 4 8 Destroy Leader 472 | . 76 122 22 30 62 20 . 30 10 30 . 20 32 18 Allied During Kill 204 | . . . . 12 18 63 . 19 8 38 18 4 15 9 Successful Hack 314 | . 34 61 . 34 58 23 . 14 10 . 26 14 18 22 Select Force Hacks 120 | . 60 60 . . . . . . . . . . . . Disable Machine 144 | . 30 . . . . . . 90 . . . 12 12 . Anti-Garrison Action 3652 | . . . . 800 . 1150 . 800 . . . 864 . 38 Destroy Structure 635 | . 23 2 1 5 6 50 . 47 . 117 . 262 28 94 Partial Spotted 12 | . . . . . . . . . . . . . . 12 Lose Combat Pursuer 258 | . . 30 . 45 . 30 . 45 . . . 12 . 96 Influence Decreases 9516 | 15 550 606 249 208 1262 616 964 596 1083 489 897 285 1327 369 Entered New Map 4893 | . . 40 149 48 732 226 894 276 821 209 503 75 771 149 Time Decay 2713 | 15 500 556 80 . 510 . 50 . 262 . 294 . 446 . Lost Part 660 | . 50 10 20 120 . 10 . 100 . 120 . 60 30 140 Lost Ally 1250 | . . . . 40 20 380 20 220 . 160 100 150 80 80 Squads Dispatched 19 | . 5 4 3 . 4 . . . 1 . . . 2 . Investigation 8 | . 4 2 2 . . . . . . . . . . . Extermination 5 | . . . . . 3 . . . 1 . . . 1 . Reinforcement 5 | . 1 2 . . 1 . . . . . . . 1 . Assault . | . . . . . . . . . . . . . . . Garrison 1 | . . . 1 . . . . . . . . . . . Intercept . | . . . . . . . . . . . . . . . Searches Triggered . | . . . . . . . . . . . . . . . Construction Impeded 1 | . . . . . . . . . . . . . 1 . Haulers Reinforced . | . . . . . . . . . . . . . . . Active Scanning Responses . | . . . . . . . . . . . . . . . Cargo Convoy Interrupts . | . . . . . . . . . . . . . . . Alert ID Control Effect 25 | . . . . . . . . . . 4 2 17 2 . Stealth | -11 -10 -9 -8 -8 -7 -7 -6 -6 -6 -6 -5 -5 -5 -5 --------- Run | Yrd Mat Mat Mat Gar Fac Gar Fac Gar Fac Gar Fac Gar Fac Gar Distress Signals 7 | . 2 4 . . 1 . . . . . . . . . Communications Jammed . | . . . . . . . . . . . . . . . Distress Signals . | . . . . . . . . . . . . . . . Times Spotted 347 | . 30 40 6 40 18 35 . 27 1 42 11 45 13 39 Peak Tracking Total 12 | . 5 4 5 7 3 5 . 12 1 12 4 10 3 11 Tactical Retreats 13 | . . 2 . 2 . 2 . 2 . . . 1 . 4 Traps | -11 -10 -9 -8 -8 -7 -7 -6 -6 -6 -6 -5 -5 -5 -5 ------- Run | Yrd Mat Mat Mat Gar Fac Gar Fac Gar Fac Gar Fac Gar Fac Gar Traps Triggered 40 | . 2 1 . 10 . 10 . 8 . . . . . 9 Indirectly 8 | . . . . . . . . . . . . . . 8 Trap Hack Attempts 2 | . . . . 2 . . . . . . . . . . Triggered . | . . . . . . . . . . . . . . . Disarmed 1 | . . . . 1 . . . . . . . . . . Reprogrammed . | . . . . . . . . . . . . . . . Reused . | . . . . . . . . . . . . . . . Traps Extracted . | . . . . . . . . . . . . . . . Installed . | . . . . . . . . . . . . . . . Triggered . | . . . . . . . . . . . . . . . Machines | -11 -10 -9 -8 -8 -7 -7 -6 -6 -6 -6 -5 -5 -5 -5 ---------- Run | Yrd Mat Mat Mat Gar Fac Gar Fac Gar Fac Gar Fac Gar Fac Gar Machines Disabled 43 | . 2 . . 8 . 7 . 12 . . . 12 1 1 Max in Single Turn 2 | . 2 . . 2 . 2 . 1 . . . 1 . 1 Garrison Relay 24 | . . . . 8 . 5 . 6 . . . 4 . 1 Phase Generator 3 | . . . . 1 . 1 . . . . . . . 1 Machines Repaired . | . . . . . . . . . . . . . . . Machines Dismantled 1 | . . . . . . . . . . . . 1 . . Machines Sabotaged . | . . . . . . . . . . . . . . . Overloaded Fab Kills . | . . . . . . . . . . . . . . . Hacking | -11 -10 -9 -8 -8 -7 -7 -6 -6 -6 -6 -5 -5 -5 -5 --------- Run | Yrd Mat Mat Mat Gar Fac Gar Fac Gar Fac Gar Fac Gar Fac Gar Machines Accessed 52 | . 8 10 1 5 7 3 1 2 5 . 5 1 3 1 Terminals 32 | . 6 4 . 5 4 3 . 2 3 . 3 1 . 1 Fabricators 2 | . . . . . 1 . . . 1 . . . . . Repair Stations 2 | . . 2 . . . . . . . . . . . . Recycling Units 4 | . 2 2 . . . . . . . . . . . . Scanalyzers 6 | . . 2 . . 1 . . . . . 1 . 2 . Garrison Access 6 | . . . 1 . 1 . 1 . 1 . 1 . 1 . Total Hacks 145 | . 31 33 3 14 18 6 1 3 10 . 17 1 5 3 Successful 80 | . 18 25 1 4 9 2 1 1 4 . 10 1 2 2 Failed 63 | . 12 7 2 10 9 4 . 2 6 . 7 . 3 1 Catastrophic 11 | . 2 1 . 2 1 . . 1 3 . . . 1 . Database Lockouts 2 | . 1 1 . . . . . . . . . . . . Manual 63 | . 22 14 . 2 13 1 . . 5 . 4 . . 2 Terminals 99 | . 28 15 . 14 14 6 . 3 8 . 7 1 . 3 Fabricators 2 | . . . . . 1 . . . 1 . . . . . Repair Stations 5 | . . 5 . . . . . . . . . . . . Recycling Units 5 | . 3 2 . . . . . . . . . . . . Scanalyzers 26 | . . 11 . . 2 . . . . . 9 . 4 . Garrison Access 8 | . . . 3 . 1 . 1 . 1 . 1 . 1 . Terminal Hacks 25 | . 8 4 . 3 3 2 . 1 1 . 1 1 . 1 Part Schematic 1 | . 1 . . . . . . . . . . . . . Robot Analysis 5 | . 3 . . . 2 . . . . . . . . . Prototype ID Bank 1 | . 1 . . . . . . . . . . . . . Open Door 2 | . . . . 1 . 1 . . . . . . . . Emergency Access Points 5 | . . 2 . 1 . . . . . . . 1 . 1 Terminal Index 3 | . 1 . . . 1 . . . . . 1 . . . Alert Level 1 | . . 1 . . . . . . . . . . . . Recall Reinforcements 1 | . 1 . . . . . . . . . . . . . Zone Layout 3 | . 1 1 . . . . . . 1 . . . . . Garrison Registry 2 | . . . . 1 . . . 1 . . . . . . Security Stations 1 | . . . . . . 1 . . . . . . . . Fabricator Hacks 1 | . . . . . 1 . . . . . . . . . Build 1 | . . . . . 1 . . . . . . . . . Repair Station Hacks 4 | . . 4 . . . . . . . . . . . . Scan Component 2 | . . 2 . . . . . . . . . . . . Repair 2 | . . 2 . . . . . . . . . . . . Recycling Unit Hacks 1 | . 1 . . . . . . . . . . . . . Report Inventory 1 | . 1 . . . . . . . . . . . . . Scanalyzer 17 | . . 8 . . 1 . . . . . 7 . 1 . Insert Component 4 | . . 3 . . . . . . . . 1 . . . Analyze 5 | . . 3 . . . . . . . . 2 . . . Retrieve Study 8 | . . 2 . . 1 . . . . . 4 . 1 . Garrison Access Hacks 6 | . . . 1 . 1 . 1 . 1 . 1 . 1 . Unlock Access 6 | . . . 1 . 1 . 1 . 1 . 1 . 1 . Unauthorized Hacks 26 | . 9 9 . 1 3 . . . 2 . 1 . . 1 Terminals 22 | . 7 7 . 1 3 . . . 2 . 1 . . 1 Assimilate 1 | . . . . . . . . . . . 1 . . . Botnet 10 | . 2 3 . 1 2 . . . 1 . . . . 1 Skim 11 | . 5 4 . . 1 . . . 1 . . . . . Fabricators . | . . . . . . . . . . . . . . . Repair Stations . | . . . . . . . . . . . . . . . Recycling Units 4 | . 2 2 . . . . . . . . . . . . Tunnel 4 | . 2 2 . . . . . . . . . . . . Scanalyzers . | . . . . . . . . . . . . . . . Garrison Access . | . . . . . . . . . . . . . . . Data Cores Recovered . | . . . . . . . . . . . . . . . Used . | . . . . . . . . . . . . . . . Hacking Detections 40 | . 6 7 1 5 5 3 . 1 4 . 4 . 3 1 Full Trace Events 4 | . . 1 1 1 . 1 . . . . . . . . Feedback Events . | . . . . . . . . . . . . . . . Feedback Blocked . | . . . . . . . . . . . . . . . Robot Schematics Acquired . | . . . . . . . . . . . . . . . Robots Built . | . . . . . . . . . . . . . . . Authchips . | . . . . . . . . . . . . . . . Time . | . . . . . . . . . . . . . . . Total Robot Build Rating . | . . . . . . . . . . . . . . . Part Schematics Acquired 4 | . 1 2 . . . . . . . . 1 . . . Parts Built 2 | . . . . . 2 . . . . . . . . . Authchips . | . . . . . . . . . . . . . . . Time 58 | . . . . . 58 . . . . . . . . . Total Part Build Rating 14 | . . . . . 14 . . . . . . . . . Part Studies Acquired 8 | . . 2 . . 1 . . . . . 4 . 1 . Parts Repaired 2 | . . 2 . . . . . . . . . . . . Time 54 | . . 54 . . . . . . . . . . . . Parts Recycled . | . . . . . . . . . . . . . . . Recycled Matter . | . . . . . . . . . . . . . . . Retrieved Matter . | . . . . . . . . . . . . . . . Retrieved Components . | . . . . . . . . . . . . . . . Parts Scanalyzed 3 | . . 2 . . . . . . . . 1 . . . Part Schematics Acquired 3 | . . 2 . . . . . . . . 1 . . . Parts Damaged . | . . . . . . . . . . . . . . . Bothacking | -11 -10 -9 -8 -8 -7 -7 -6 -6 -6 -6 -5 -5 -5 -5 ------------ Run | Yrd Mat Mat Mat Gar Fac Gar Fac Gar Fac Gar Fac Gar Fac Gar Used RIF Installer 6 | . . . . 1 . 1 . 1 . . . 2 . 1 Command Fork 1 | . . . . . . . . 1 . . . . . . Threat Obfuscator 1 | . . . . . . . . . . . . 1 . . Signal Jammer 1 | . . . . . . . . . . . . . . 1 Watcher Feeds 1 | . . . . . . . . . . . . 1 . . Alert ID Control 1 | . . . . . . 1 . . . . . . . . Autoassimilate 1 | . . . . . 1 . . . . . . . . . Robots Hacked 42 | . . . . . 3 17 . 7 . 4 3 5 2 1 Non-combat . | . . . . . . . . . . . . . . . Combat 42 | . . . . . 3 17 . 7 . 4 3 5 2 1 Autoassimilated 2 | . . . . . . . . 1 . . 1 . . . Robot Hacks Applied 41 | . . . . . 4 17 . 6 . 4 2 5 2 1 streamctrl_high 2 | . . . . . 1 . . 1 . . . . . . formatsys_high 39 | . . . . . 3 17 . 5 . 4 2 5 2 1 Relay Couplers Released 92 | . . . . 32 . 17 . 22 . . . 16 . 5 Machine Destruction 89 | . . . . 32 . 17 . 19 . . . 16 . 5 Programmers 3 | . . . . . . . . 3 . . . . . . Attached 18 | . . . . . 2 7 . 4 . 4 . 1 . . Fabnet Peak Effective % . | . . . . . . . . . . . . . . . Robots Rewired 10 | . . . . 2 . 2 . . . 3 . . . 3 Allies Hacked 5 | . . . . 1 . . . . . . . 4 . . Hacks Repelled . | . . . . . . . . . . . . . . . Allies | -11 -10 -9 -8 -8 -7 -7 -6 -6 -6 -6 -5 -5 -5 -5 -------- Run | Yrd Mat Mat Mat Gar Fac Gar Fac Gar Fac Gar Fac Gar Fac Gar Total Allies 69 | . . . . 2 3 24 . 9 . 7 9 9 2 4 Largest Group 5 | . . . . 2 2 5 5 4 2 5 5 5 3 3 Highest-Rated Group 243 | . . . . 62 64 120 120 157 157 211 243 240 149 90 Highest-Rated Ally 95 | . . . . 31 32 43 32 95 95 89 49 80 51 43 Total Orders . | . . . . . . . . . . . . . . . Ally Attacks 310 | . . . . 7 12 97 4 27 5 36 23 55 31 13 Total Damage 8286 | . . . . 64 296 1926 27 588 185 1058 530 2546 750 316 Kills 58 | . . . . 1 4 14 . 1 1 9 3 19 5 1 Allies Corrupted 3 | . . . . . . . . . . . . 2 1 . Allies Melted 2 | . . . . . . . . . . . 2 . . . X0-1V1 Amusement Gains 147 | . 11 5 . 20 . 20 . 50 . 40 . . . 1 Average Entertainment 44 | . 8 7 2 5 13 25 10 28 60 98 100 99 99 99 Good Acts 73 | . . 4 . 10 5 19 . 8 1 3 5 9 3 6 Bad Acts 39 | . . 8 1 2 4 3 . 8 . 3 . 6 1 3 Intel | -11 -10 -9 -8 -8 -7 -7 -6 -6 -6 -6 -5 -5 -5 -5 ------- Run | Yrd Mat Mat Mat Gar Fac Gar Fac Gar Fac Gar Fac Gar Fac Gar Active Infowar (turns) 9350 | 49 501 . 121 100 906 256 115 399 428 932 654 3066 1080 743 Traps 6711 | . . . . . . . . . 237 931 654 3066 1080 743 Seismic 771 | 49 501 . 121 100 . . . . . . . . . . Jamming 4215 | . . . . . 906 256 115 399 428 93 591 1427 . . Robot Analysis Total 5 | . 3 . . . 2 . . . . . . . . . Derelict Logs Recovered . | . . . . . . . . . . . . . . . Drone Launches . | . . . . . . . . . . . . . . . Drone Recoveries . | . . . . . . . . . . . . . . . Exploration | -11 -10 -9 -8 -8 -7 -7 -6 -6 -6 -6 -5 -5 -5 -5 ------------- Run | Yrd Mat Mat Mat Gar Fac Gar Fac Gar Fac Gar Fac Gar Fac Gar Turns Passed 19713 | 120 1434 1636 162 2314 1385 2912 116 2413 572 1004 654 3066 1103 822 Spaces Moved 8034 | 83 869 941 70 758 710 1168 36 918 206 228 213 1206 348 280 Core 14 | 10 . 4 . . . . . . . . . . . . Treads 4202 | . 404 258 . 299 284 952 36 376 86 156 40 1100 211 . Legs 36 | . . . . . . . . . . . 36 . . . Wheels 3782 | 73 465 679 70 459 426 216 . 542 120 72 137 106 137 280 Hover . | . . . . . . . . . . . . . . . Flight . | . . . . . . . . . . . . . . . Fastest Speed 50 | 50 100 105 135 135 115 115 325 160 175 160 150 150 255 135 Average Speed 209 | 91 127 138 135 252 167 221 325 233 271 345 254 227 289 225 Slowest Speed 1500 | 100 160 1500 135 560 320 325 325 490 560 640 560 340 340 370 Overloaded Moves . | . . . . . . . . . . . . . . . Propulsion Burnouts . | . . . . . . . . . . . . . . . Robots Hopped . | . . . . . . . . . . . . . . . Potential Cave-ins 9 | . . . . . . . . 9 . . . . . . Cave-ins Triggered 1 | . . . . . . . . 1 . . . . . . Exploration Rate (%) 43 | 3 95 79 8 92 16 98 1 75 6 40 6 98 8 29 Regions Visited 14 Branch Regions . Pre-discovered Areas 4 | . 2 2 . . . . . . . . . . . . Known Exits Taken 7 | . 1 . 1 . 1 . 1 . 1 . 1 . 1 . Unknown Exits Taken 2 | 1 . 1 . . . . . . . . . . . . Scrap Searched . | . . . . . . . . . . . . . . . Spaces Dug 8 | . 1 2 . . 5 . . . . . . . . . Terrain Destroyed 267 | . 30 2 . 2 5 71 . 18 . 43 . 6 12 78 Melee 8 | . 1 2 . . 5 . . . . . . . . . Projectile 51 | . . . . 2 . 3 . 17 . 2 . 1 12 14 AOE 207 | . 29 . . . . 68 . . . 41 . 5 . 64 Terrain Rammed . | . . . . . . . . . . . . . . . Walls Destroyed . | . . . . . . . . . . . . . . . Machines Disabled . | . . . . . . . . . . . . . . . Actions | -11 -10 -9 -8 -8 -7 -7 -6 -6 -6 -6 -5 -5 -5 -5 --------- Run | Yrd Mat Mat Mat Gar Fac Gar Fac Gar Fac Gar Fac Gar Fac Gar Total 9894 | 112 1034 1159 102 1019 832 1419 37 1085 221 380 304 1395 413 382 Wait 307 | 4 14 103 4 28 16 32 . 1 . 9 51 20 25 . Move 8021 | 82 868 940 70 756 709 1167 35 916 205 227 213 1205 348 280 Hop . | . . . . . . . . . . . . . . . Pick Up 238 | 11 26 20 4 36 15 34 . 27 3 19 8 21 7 7 Fast Attach 33 | 3 3 3 . 2 7 3 . 1 1 3 . 4 1 2 Attach 132 | 4 5 9 5 16 4 19 2 15 . 19 7 8 5 14 Detach 6 | . . . . 1 . . . 2 . 2 . . . 1 Swap 147 | 1 11 5 1 24 18 15 . 8 4 15 5 28 7 5 Drop 178 | . 18 17 1 19 24 32 . 16 6 12 5 20 3 5 Fire 544 | 7 86 59 17 64 33 61 . 60 2 34 3 49 17 52 Melee 86 | . 1 3 . 13 6 2 . 14 . 6 12 28 . 1 Ram . | . . . . . . . . . . . . . . . Kick . | . . . . . . . . . . . . . . . Crush . | . . . . . . . . . . . . . . . Escape Stasis 125 | . . . . 58 . 36 . 23 . . . . . 8 Rewire 67 | . 2 . . . . 18 . 2 . 34 . 4 . 7 Trap 2 | . . . . 2 . . . . . . . . . . Miscellaneous 8 | . . . . . . . . . . . . 8 . . Route ------- -11/Scrapyard -10/Materials (discovered 6 exits: *Mat x3 / *Min x2 / *Sub) -9/Materials (discovered 4 exits: *Mat x3 / [*Min]) -8/Materials -8/Garrison (discovered 3 exits: *Fac x3) -7/Factory -7/Garrison (discovered 3 exits: *Fac x3) -6/Factory -6/Garrison (discovered 3 exits: *Fac x3) -6/Factory (discovered 2 exits: Low / Gar) -6/Garrison -5/Factory -5/Garrison (discovered 3 exits: *Fac x3) -5/Factory (discovered 2 exits: [*Upp] / Gar) -5/Garrison History --------- Turn | Location | Event 9 | -11/Scrapyard | Discovered new exit (range 15) 121 | -11/Scrapyard | Entered Materials 308 | -10/Materials | Build established: Mutant 332 | -10/Materials | Discovered new exit (range 8) 364 | -10/Materials | Discovered new exit (range 15) 534 | -10/Materials | Core integrity fell below 50% 552 | -10/Materials | Central database locked down 554 | -10/Materials | Destroyed 7 combat bots 583 | -10/Materials | Discovered new exit (range 16) 602 | -10/Materials | Loaded intel: 1 repair station location 667 | -10/Materials | Learned location of 1 exit from Recycling 683 | -10/Materials | Learned Storage emergency access door positions 688 | -10/Materials | Identified exit to Mines 689 | -10/Materials | Learned location of 1 exit from Storage 690 | -10/Materials | Learned Storage trap positions 691 | -10/Materials | Identified exit to Materials 691 | -10/Materials | Identified exit to Subcaves 714 | -10/Materials | Learned Storage emergency access door positions 742 | -10/Materials | Learned location of 2 exits from Mines 1366 | -10/Materials | Prayed at D.C.S.S. Altar Unit 1555 | -10/Materials | Entered another Materials area 1555 | -9/Materials | Evolved 2 slots: Utility x1, Weapon x1 1685 | -9/Materials | Central database locked down 1739 | -9/Materials | Repaired Katana 1803 | -9/Materials | Discovered new exit (range 14) 1864 | -9/Materials | Repaired Spread Laser+ 2321 | -9/Materials | X0-1V1 made a cryptic comment about sterilization and BL-4Z3 2343 | -9/Materials | KI resistance permanently improved by X0-1V1 (+10%; -100 max core) 2433 | -9/Materials | Sterilization system engaged 2433 | -9/Materials | Non-combat units ordered to evacuate 2474 | -9/Materials | Discovered new exit (range 8) 2533 | -9/Materials | Combat units ordered to evacuate 2551 | -9/Materials | Discovered new exit (range 16) 2569 | -9/Materials | X0-1V1 caused items to flee you 2731 | -9/Materials | Items stopped fleeing you 2733 | -9/Materials | Ambient heat levels rising (+10) 2811 | -9/Materials | Discovered new exit (range 3) 2811 | -9/Materials | X0-1V1 activates XOMVISION 2883 | -9/Materials | Ambient heat levels rising (+10) 3033 | -9/Materials | Ambient heat levels rising (+10) 3106 | -9/Materials | X0-1V1 announced a LAN party 3183 | -9/Materials | Ambient heat levels rising (+10) 3191 | -9/Materials | Entered another Materials area 3191 | -8/Materials | Evolved 2 slots: Utility x2 3291 | -8/Materials | Garrison activated, responded to threat 3353 | -8/Materials | Identified exit to Garrison 3353 | -8/Materials | Entered Garrison 3395 | -8/Garrison | Triggered checkpoint 3422 | -8/Garrison | Garrison Relay disabled 3493 | -8/Garrison | Melee accuracy permanently improved by X0-1V1 (+8%; -80 max core) 3513 | -8/Garrison | Triggered checkpoint 3613 | -8/Garrison | Destroyed 7 combat bots 3615 | -8/Garrison | Triggered checkpoint 3616 | -8/Garrison | Lost 4 parts (1p1u2w) 3644 | -8/Garrison | X0-1V1 destroyed Phase Generator 3644 | -8/Garrison | Phase Generator disabled 3808 | -8/Garrison | Installed Relay Interface Framework 3831 | -8/Garrison | Triggered checkpoint 3831 | -8/Garrison | Garrison Relay disabled 3919 | -8/Garrison | Triggered checkpoint 3970 | -8/Garrison | Discovered new exit (range 12) 4155 | -8/Garrison | Triggered checkpoint 4158 | -8/Garrison | Build established: Bothacker-Tank 4216 | -8/Garrison | Discovered new exit (range 13) 4216 | -8/Garrison | Discovered new exit (range 73) 4216 | -8/Garrison | Discovered new exit (range 55) 4279 | -8/Garrison | Garrison Relay disabled 4610 | -8/Garrison | Build established: Bothacker-Mutant 4680 | -8/Garrison | Garrison Relay disabled 4722 | -8/Garrison | Lost 3 parts (1n2u) 4830 | -8/Garrison | Garrison Relay disabled 4850 | -8/Garrison | Garrison Relay disabled 4899 | -8/Garrison | Garrison Relay disabled 5115 | -8/Garrison | Triggered checkpoint 5345 | -8/Garrison | Triggered checkpoint 5418 | -8/Garrison | Garrison Relay disabled 5451 | -8/Garrison | X0-1V1 upgraded hostiles (x1) 5454 | -8/Garrison | System corruption reached 10% 5667 | -8/Garrison | Entered Factory 5667 | -7/Factory | Evolved 2 slots: Propulsion x2 5684 | -7/Factory | Found Prototype Launcher 5684 | -7/Factory | Identified Rocket Array 5691 | -7/Factory | Found Rocket Array 5695 | -7/Factory | Found Rocket Array 5782 | -7/Factory | X0-1V1 redirected Transport squads to designated parking area 6136 | -7/Factory | X0-1V1 activates XOMVISION 6203 | -7/Factory | Expanded RIF knowledge: Autoassimilate 6423 | -7/Factory | Inventory capacity permanently improved by X0-1V1 (+1; -100 max core) 6617 | -7/Factory | Imp. Cooling System reconfigured into Item Mimic 6813 | -7/Factory | Destroyed 8 combat bots 6888 | -7/Factory | Build established: Bothacker-Gunner 6889 | -7/Factory | Fabricated Adv. Transmission Jammer (x2) 7002 | -7/Factory | Identified exit to Garrison 7052 | -7/Factory | Entered Garrison 7052 | -7/Garrison | Accompanied by 2 allies 7195 | -7/Garrison | X0-1V1 activates XOMVISION 7208 | -7/Garrison | Triggered checkpoint 7210 | -7/Garrison | Triggered checkpoint 7248 | -7/Garrison | Triggered checkpoint 7254 | -7/Garrison | Triggered checkpoint 7336 | -7/Garrison | Identified exit to Factory 7336 | -7/Garrison | X0-1V1 revealed exit location to -6/Factory 7378 | -7/Garrison | X0-1V1 destroyed Phase Generator 7378 | -7/Garrison | Phase Generator disabled 7382 | -7/Garrison | Spotted B-75 Beast 7395 | -7/Garrison | X0-1V1 upgraded ally (x2) 7412 | -7/Garrison | Allies destroyed B-75 Beast 7429 | -7/Garrison | Lost 3 allies 7504 | -7/Garrison | X0-1V1 activates XOMVISION 7631 | -7/Garrison | Garrison Relay disabled 7632 | -7/Garrison | X0-1V1 revealed exit location to -6/Factory 7908 | -7/Garrison | Discovered exit to Factory (range 14) 7968 | -7/Garrison | X0-1V1 sent allied H-55 Commando (x3) 8016 | -7/Garrison | Lost 6 allies 8111 | -7/Garrison | Core integrity restored by X0-1V1 (+96) 8223 | -7/Garrison | Build established: Hauler-Gunner 8319 | -7/Garrison | Learned Factory security intel 8614 | -7/Garrison | Garrison Relay disabled 8854 | -7/Garrison | X0-1V1 activates XOMVISION 8873 | -7/Garrison | Garrison Relay disabled 9106 | -7/Garrison | System corruption reached 10% 9183 | -7/Garrison | Garrison Relay disabled 9196 | -7/Garrison | Triggered checkpoint 9499 | -7/Garrison | Expanded RIF knowledge: Alert ID Control 9964 | -7/Garrison | Entered Factory 9964 | -6/Factory | Accompanied by 5 allies 9964 | -6/Factory | Evolved 2 slots: Power x1, Utility x1 10048 | -6/Factory | Identified exit to Garrison 10080 | -6/Factory | Entered Garrison 10080 | -6/Garrison | Accompanied by 4 allies 10134 | -6/Garrison | Triggered checkpoint 10196 | -6/Garrison | Garrison Relay disabled 10456 | -6/Garrison | Triggered checkpoint 10472 | -6/Garrison | Lost 3 allies 10523 | -6/Garrison | Lost 4 allies 10586 | -6/Garrison | Lost 3 allies 10604 | -6/Garrison | Triggered checkpoint 10607 | -6/Garrison | Triggered checkpoint 10751 | -6/Garrison | System corruption reached 10% 10892 | -6/Garrison | Triggered checkpoint 10946 | -6/Garrison | Garrison Relay disabled 11318 | -6/Garrison | Build established: Scavenger-Mutant 11382 | -6/Garrison | Discovered new exit (range 13) 11472 | -6/Garrison | Triggered checkpoint 11517 | -6/Garrison | Lost 3 parts (1p1n1u) 11531 | -6/Garrison | Garrison Relay disabled 11576 | -6/Garrison | Expanded RIF knowledge: Command Fork 11624 | -6/Garrison | X0-1V1 caused items to flee you 11765 | -6/Garrison | Discovered new exit (range 30) 11765 | -6/Garrison | Discovered new exit (range 50) 11765 | -6/Garrison | Discovered new exit (range 24) 11782 | -6/Garrison | Triggered checkpoint 11810 | -6/Garrison | Items stopped fleeing you 11820 | -6/Garrison | Garrison Relay disabled 11840 | -6/Garrison | Garrison Relay disabled 11841 | -6/Garrison | X0-1V1 vaporized surrounding terrain (radius 15) 11842 | -6/Garrison | Found embedded Infiltrators 11934 | -6/Garrison | Crushed by falling debris 11935 | -6/Garrison | System corruption reached 30% 11965 | -6/Garrison | Lost 3 parts (1p1u1w) 12023 | -6/Garrison | Found Gamma Bomb Array 12285 | -6/Garrison | Garrison Relay disabled 12288 | -6/Garrison | Build established: Bothacker-Mutant 12460 | -6/Garrison | X0-1V1 vaporized surrounding terrain (radius 15) 12493 | -6/Garrison | Entered Factory 12493 | -6/Factory | Accompanied by 2 allies 12510 | -6/Factory | Noticed a derelict Sapper rigging charges 12532 | -6/Factory | Identified exit to Lower Caves 12532 | -6/Factory | X0-1V1 revealed exit location to -6/Lower Caves 13060 | -6/Factory | Identified exit to Garrison 13065 | -6/Factory | Entered Garrison 13065 | -6/Garrison | Accompanied by 2 allies 13152 | -6/Garrison | X0-1V1 sent you into danger 13191 | -6/Garrison | Destroyed 13 combat bots 13196 | -6/Garrison | Lost 3 parts (3u) 13298 | -6/Garrison | Triggered checkpoint 13349 | -6/Garrison | X0-1V1 sent you into danger 13352 | -6/Garrison | Triggered checkpoint 13352 | -6/Garrison | Triggered checkpoint 13353 | -6/Garrison | Triggered checkpoint 13391 | -6/Garrison | Core integrity fell below 50% 13400 | -6/Garrison | Core integrity fell below 20% 13408 | -6/Garrison | Destroyed 12 combat bots 13417 | -6/Garrison | Lost 6 parts (2p2n1u1w) 13868 | -6/Garrison | Identified exit to Factory 13868 | -6/Garrison | X0-1V1 revealed exit location to -5/Factory 13878 | -6/Garrison | X0-1V1 upgraded hostiles (x2) 14069 | -6/Garrison | Entered Factory 14069 | -5/Factory | Accompanied by 1 ally 14069 | -5/Factory | Evolved 2 slots: Power x1, Utility x1 14248 | -5/Factory | X0-1V1 sent you to a vault 14279 | -5/Factory | Lost 3 allies 14442 | -5/Factory | X0-1V1 activates XOMVISION 14723 | -5/Factory | Identified exit to Garrison 14723 | -5/Factory | Entered Garrison 14723 | -5/Garrison | Accompanied by 5 allies 14776 | -5/Garrison | Build established: Scavenger-Mutant 14776 | -5/Garrison | Identified exit to Factory 14776 | -5/Garrison | X0-1V1 revealed exit location to -5/Factory 15081 | -5/Garrison | Triggered checkpoint 15111 | -5/Garrison | Garrison Relay disabled 15174 | -5/Garrison | Build established: Hauler-Tank 15204 | -5/Garrison | Found Relay Coupler [Proto] 15210 | -5/Garrison | Found Relay Coupler [Proto] 15213 | -5/Garrison | P-70 Sage assimilated allied Sentinel 6c 15329 | -5/Garrison | Triggered checkpoint 15332 | -5/Garrison | Triggered checkpoint 15333 | -5/Garrison | Triggered checkpoint 15391 | -5/Garrison | Destroyed 11 combat bots 15400 | -5/Garrison | Lost 4 parts (1p1u2w) 15465 | -5/Garrison | Found Relay Coupler [Proto] 15890 | -5/Garrison | Build established: Bothacker-Tank 15956 | -5/Garrison | X0-1V1 activates XOMVISION 16050 | -5/Garrison | Discovered exit to Factory (range 15) 16124 | -5/Garrison | Expanded RIF knowledge: Threat Obfuscation 16145 | -5/Garrison | Triggered checkpoint 16367 | -5/Garrison | Triggered checkpoint 16509 | -5/Garrison | Discovered exit to Factory (range 5) 16541 | -5/Garrison | Triggered checkpoint 16577 | -5/Garrison | Found embedded Infiltrators 16611 | -5/Garrison | Garrison Relay disabled 16672 | -5/Garrison | Lost 4 allies 16689 | -5/Garrison | Build established: Bothacker-Mutant 16698 | -5/Garrison | Expanded RIF knowledge: Watcher Feeds 16921 | -5/Garrison | X0-1V1 mutated your Propulsion slot to Utility slot 17433 | -5/Garrison | Triggered checkpoint 17479 | -5/Garrison | Triggered checkpoint 17538 | -5/Garrison | Garrison Relay disabled 17594 | -5/Garrison | Rescued a captive Derelict 17594 | -5/Garrison | Rescued a captive Derelict 17718 | -5/Garrison | X0-1V1 vaporized surrounding terrain (radius 24) 17789 | -5/Garrison | Entered Factory 17789 | -5/Factory | Accompanied by 3 allies 17871 | -5/Factory | X0-1V1 mutated your Utility slot to Power slot 18246 | -5/Factory | X0-1V1 activates XOMVISION 18597 | -5/Factory | Lost 3 parts (1p1n1w) 18741 | -5/Factory | Discovered new exit (range 14) 18892 | -5/Factory | Identified exit to Garrison 18892 | -5/Factory | Entered Garrison 18943 | -5/Garrison | Build established: Bothacker-Tank 18994 | -5/Garrison | Expanded RIF knowledge: Signal Jamming 19080 | -5/Garrison | Core integrity fell below 50% 19082 | -5/Garrison | Triggered checkpoint 19082 | -5/Garrison | Triggered checkpoint 19202 | -5/Garrison | Triggered checkpoint 19279 | -5/Garrison | Garrison Relay disabled 19298 | -5/Garrison | Triggered checkpoint 19344 | -5/Garrison | Build established: Bothacker-Gunner 19592 | -5/Garrison | X0-1V1 destroyed Phase Generator 19592 | -5/Garrison | Phase Generator disabled 19623 | -5/Garrison | Spotted B-75 Beast 19674 | -5/Garrison | Core integrity fell below 20% 19713 | -5/Garrison | System corruption reached 10% 19714 | -5/Garrison | Destroyed by P-70 Sage with Tesla Rifle Last Messages --------------- 19697_ System corrupted: Enh. Nova Cannon failed to cycle. 19699_ Rnf. Quantum Reactor destroyed. 19702_ Adv. Cooling System destroyed. 19703_ Field strength at 70. 19703_ G-50 Soldier destroyed. 19704_ Field strength at 40. X0-1V1's Piety Tracker suddenly appears amidst shimmering waves of color. 19705_ Field strength at 10. 19706_ Stasis field depleted. 19706_ Adv. Heat Sink destroyed. 19709_ Mic. Antimatter Reactor destroyed. 19710_ X0-1V1 is amused. 19710_ Penetrated by Slug. 19711_ System corrupted: Component data lost. 19711_ G-50 Soldier destroyed. 19713_ Slug penetrates Reinforced Barrier. 19714_ X0-1V1 snickers! [Achievement: 40k Club] Map ----- +----------------------------------------------------+ | ?????????????????????????????????????????????????? | | ?????????????????????????????????????????????????? | | ?????????????????????????????????????????????????? | | ?????????????????????##??????????????????????????? | | ????????????????????? ??????????????????????????? | | ??#?????????????????# ??????????????????????????? | | ??#?????????????????# ??????????????????????????? | | ????????????????????# ??????????????????????????? | | ????????????????????# ??????????????????????????? | | ????????????????????# ??????????????????????????? | | ????????????????????# ??????????????????????????? | | ??????????#???#####?# ??????????????????????????? | | ??????????# ??# ?# ??????????????????????????? | | ??????#??## ## ## ##????????????????????????? | | ????????? #????????????????????????? | | ??????????? [! ????????????????????????? | | ????????? ??? =%= ????????????????????????? | | ?????????# ??#=%[ #????????????????????????? | | ???????### ## ^ ###??????????????????????? | | ???????# Y % #??????????????????????? | | ???????# [[%[ #??????????????????????? | | ???????# =%!% #########??????????????? | | ?????????" !!p % # ## # ###????????????? | | ?????????????## #[! #### # # #????????????? | | ?????????# ## # =] |# ## ################# | | ?????? ^^ p ^ !% @[ = * ! | | ?????? ^^ ^ =[]= = = | | ???????### ^*g ;# ## =################ | | ?????????## ### #;%[[## # # #??????????????? | | ??????????????# ## #### #### #??????????????? | | ??????????????####??# ????##??# #??????????????? | | ????????????????????# ????????# #??????????????? | | ??#?????????????????# ????????# #??????????????? | | ????????????????????# ????????# #??????????????? | | ????????????????????# ????????# #??????????????? | | ????????????????????# ????????# #??????????????? | | ????????????????????# ????????# #??????????????? | | ????????????????????"%=????????# #??????????????? | | ????????????????????#= ????????# #??????????????? | | ??#?????????????????# ?????????# #??????????????? | | ????????????????????# ?????????# #??????????????? | | ????????????????????? ?????????# #??#####???????? | | ????????????????????? ?????????# #?## ##??????? | | ???????????????????????????????# #?# #####??? | | ????#??????????????????????????# #??# # #??? | | ??????????????????????????????## ##### # #### | | ?????????#????????????????????#" [ | | ??????????????????????????????## | | ???????????????????????????????########## # ###### | | ???????????????????????????????????????# # #???? | +----------------------------------------------------+ Best States ------------- Heat Dissipation 121 Coolant Potential 80 Energy Generation 79 Energy Capacity 2100 Matter Stores 900 Matter Capacity 900 Sight Range 21 Terrain Scan Density 10 Jamming Range 16 Armor Coverage 300 Resistance: KI 10 Resistance: TH 67 Core Shielding 30 Weapon Cycling 15 Phase Shifting 5 Evasion (%) 45 Target Analysis 8 Recoil Reduction 8 Matter Filtering 30 Particle Charging 25 Relay Coupler Types 2 Relay Coupler Value 107 Item Schematics ----------------- Huge Storage Unit | -10/Materials | Hacked Cooling System | -9/Materials | Scanalyzed Plasma Cutter | -9/Materials | Scanalyzed Quantum Rifle | -5/Factory | Scanalyzed Robot Schematics ------------------ None Fabricated ------------ Adv. Transmission Jammer | x2 | -7/Factory | Preloaded Repaired ---------- Katana | 74% | -9/Materials Spread Laser | 26% | -9/Materials Studied --------- Spread Laser | -9/Materials | Hacked Com. Wheel | -9/Materials | Hacked Gauss Rifle | -7/Factory | Hacked Magnetic Acceleration Cannon | -5/Factory | Hacked Lgt. Angular Momentum Engine | -5/Factory | Hacked Power Sword | -5/Factory | Hacked Wheel | -5/Factory | Hacked KE Penetrator | -5/Factory | Hacked Alien Tech Used ----------------- None Achievements -------------- 40k Club Hackerman Into The Breach Oppo Buddy Challenges ------------ None Game ------ Seed GatlingShrapnelCorpse Manual? 0 Play Time 03:34:01 Cumulative 420.4 hours Start 2026.09.08 @ 00:05:00 End 2026.09.08 @ 04:01:52 Sessions 1 Manual Loads 0 Difficulty Rogue Special Mode None Game No. 305 Rogue 295 Adventurer 0 Explorer 10 Win Type - Total 5 Types 5/0/0/0/0/0/0/0/0/0 Lore% 81 Gallery% 66 Achievement% 47 Wizard Run 0 Options --------- Layout 2 ASCII 0 Keyboard 0 Movement Arrows Keybinds 1 Fullscreen 1 Font 24/Terminus Map View 50x44 Zoom Use 0% Tactical HUD 1 Map Filters NONE Filters NONE Steam 1 RUN: bf109868-e148-49e3-8d6e-ef44738ded87